Cogmind - Beta 14 @@@ ROGUE MODE // 2025.03.05 @ 16:00:05 Player: Udabudha Result: Destroyed by Y-45 Defender with Heavy Assault Rifle Performance ------------- Evolutions (1) 500 Regions Visited (4) 800 Robots Destroyed (4) 20 Value Destroyed (126) 126 Prototype IDs (0) 0 Alien Tech Used (0) 0 Bonus (0) 0 TOTAL SCORE: 1446 Bonus ------- None Cogmind --------- Core Integrity 0/400 Matter 216/300 Energy 100/100 System Corruption 0% Temperature Cool (15) Movement Core (100) Ox1 Location -9/Storage Parts ------- > --- POWER (1) -------- (None) > --- PROPULSION (4) --- (None) > --- UTILITY (2) ------ Small Storage Unit Targeting Computer > --- WEAPON (2) ------- (None) > --- INVENTORY (8) ---- Ion Engine Seismic Detector Peak State ------------ > --- POWER ------------ Ion Engine > --- PROPULSION ------- Aluminum Leg Aluminum Leg > --- UTILITY ---------- Small Storage Unit Terrain Scanner > --- WEAPON ----------- EM Pulse Gun Beam Cannon > --- INVENTORY -------- Ion Engine Medium Laser [Rating: 7] Favorites ----------- Power Ion Engine Engine Ion Engine Propulsion Aluminum Leg Leg Aluminum Leg Wheel Compact Wheel Utility Small Storage Unit Device Terrain Scanner Storage Small Storage Unit Processor Targeting Computer Weapon Beam Cannon Energy Gun EM Pulse Gun Energy Cannon Beam Cannon Ballistic Cannon Improved Light Cannon Launcher Grenade Launcher Build | -11 -10 -10 -9 -9 ------- Run | Yrd Mat Min Mat Sto Slots Evolved 2 | . . . 2 . Power . | . . . . . Propulsion 2 | . . . 2 . Utility . | . . . . . Weapon . | . . . . . Parts Attached 13 | 4 3 . . 6 Power 1 | 1 . . . . Engine 1 | 1 . . . . Core . | . . . . . Reactor . | . . . . . Propulsion 3 | 2 . . . 1 Treads . | . . . . . Leg 2 | 2 . . . . Wheel 1 | . . . . 1 Hover . | . . . . . Flight . | . . . . . Utility 3 | 1 1 . . 1 Device 1 | . 1 . . . Storage 1 | 1 . . . . Processor 1 | . . . . 1 Hackware . | . . . . . Protection . | . . . . . Artifact . | . . . . . Weapon 6 | . 2 . . 4 Energy Gun 3 | . 1 . . 2 Energy Cannon 1 | . 1 . . . Ballistic Gun . | . . . . . Ballistic Cannon 1 | . . . . 1 Launcher 1 | . . . . 1 Special Weapon . | . . . . . Impact Weapon . | . . . . . Slashing Weapon . | . . . . . Piercing Weapon . | . . . . . Special Melee Weapon . | . . . . . Unidentified Prototypes . | . . . . . Parts Lost 11 | . . . . 11 Power 1 | . . . . 1 Propulsion 3 | . . . . 3 Utility 1 | . . . . 1 Weapon 6 | . . . . 6 Highest Loss Streak 4 | . . . . 4 To Critical Strikes . | . . . . . Average Slot Usage (%) 73 | . 94 100 77 54 Engine 9 | . 14 14 11 5 Leg 17 | . 28 28 22 8 Wheel 1 | . . . . 2 Device 9 | . 11 14 11 6 Storage 12 | . 14 14 11 11 Processor 1 | . . . . 2 Energy Gun 10 | . 12 14 11 8 Energy Cannon 8 | . 12 14 11 4 Ballistic Cannon 1 | . . . . 3 Peak Build Rating 7 | 4 7 7 7 7 Average Rating 5 | 3 6 7 7 5 On Entrance 5 | . 4 7 7 7 Naked Turns . | . . . . . Heaviest Build 16 | 10 16 16 16 16 Greatest Support 20 | 20 20 20 20 20 Greatest Overweight (x) 5 | 1 . . . 5 Average Overweight (x) . | . . . . . Largest Inventory Capacity 8 | 8 8 8 8 8 Average Capacity 7 | 7 8 8 8 8 Most Carried 5 | 4 4 4 4 5 Average Carried 3 | 2 3 4 4 3 Final Capacity 8 | 8 8 8 8 8 Final Carried 4 | 3 4 4 4 2 Class Distribution -------------------- 100% | Mutant Dominant Class ---------------- Mutant | -10/Materials Mutant | -10/Mines Mutant | -9/Materials Mutant | -9/Storage Resources | -11 -10 -10 -9 -9 ----------- Run | Yrd Mat Min Mat Sto Matter Collected 239 | 108 70 . . 61 Remotely . | . . . . . Salvage Created 189 | . 20 . . 169 Parts 5 | . 3 . . 2 Haulers Intercepted . | . . . . . Recyclers Shooed . | . . . . . Parts Field Recycled . | . . . . . Retrieved Matter . | . . . . . Parts Self-Destructed . | . . . . . Prevented . | . . . . . Kills | -11 -10 -10 -9 -9 ------- Run | Yrd Mat Min Mat Sto Combat Hostiles Destroyed 3 | . 1 . . 2 Cannons 2 | . 1 . . 1 Classes Destroyed 3 | . 1 . . 2 Recycler 1 | . . . . 1 Swarmer 1 | . 1 . . . Sentry 2 | . . . . 2 Best Kill Streak 2 | . 1 . . 2 Combat Bots Only 1 | . 1 . . 1 Max Kills in Single Turn 1 | . 1 . . 1 Gunslinging . | . . . . . Exploded . | . . . . . Melee . | . . . . . Uniques/NPCs Destroyed . | . . . . . Combat | -11 -10 -10 -9 -9 -------- Run | Yrd Mat Min Mat Sto Hostile Shots Fired 123 | . 18 1 . 104 Missed 27 | . 5 . . 22 Damage Taken 1350 | . 98 8 . 1244 Core 411 | . 9 . . 402 Absorbed by Shields . | . . . . . Core Remaining (%) 98 | 100 . 96 . . Volleys Fired 21 | . 5 . . 16 Largest 2 | . 2 . . 2 Hottest 110 | . 100 . . 110 Shots Fired 34 | . 10 . . 24 Gun 13 | . 5 . . 8 Cannon 19 | . 5 . . 14 Launcher 2 | . . . . 2 Special . | . . . . . Kinetic 7 | . . . . 7 Thermal 18 | . 5 . . 13 Explosive 2 | . . . . 2 Electromagnetic 7 | . 5 . . 2 Robot Hit Streak 15 | . 3 . . 15 Robot Miss Streak 7 | . 7 . . 1 Penetration Max . | . . . . . Secondary Targets . | . . . . . Shots Hit Robots 22 | . 3 . . 19 Core Hits 4 | . 1 . . 3 Critical Kills . | . . . . . Critical Parts Destroyed . | . . . . . Critical Strikes 1 | . . . . 1 Burn 1 | . . . . 1 Melee Attacks . | . . . . . Impact . | . . . . . Slashing . | . . . . . Piercing . | . . . . . Sneak Attacks . | . . . . . Combat Hostiles . | . . . . . Follow-up Attacks . | . . . . . Damage Inflicted 392 | . 47 . . 345 Guns 70 | . 11 . . 59 Cannons 285 | . 36 . . 249 Explosions 37 | . . . . 37 Melee . | . . . . . Ramming . | . . . . . Kinetic 127 | . . . . 127 Thermal 207 | . 36 . . 171 Explosive 37 | . . . . 37 Electromagnetic 21 | . 11 . . 10 Impact . | . . . . . Slashing . | . . . . . Piercing . | . . . . . Highest Corruption . | . . . . . Average Corruption . | . . . . . Corruption Purged . | . . . . . Corruption Blocked . | . . . . . Overload Shots . | . . . . . Overflow Damage . | . . . . . Projectiles . | . . . . . Explosions . | . . . . . Melee . | . . . . . Knockbacks . | . . . . . Impact . | . . . . . Kinetic . | . . . . . Secondary . | . . . . . Self-Inflicted Damage 34 | . . . . 34 Shots 2 | . . . . 2 Rammed . | . . . . . Targets Rammed . | . . . . . Kicked . | . . . . . Crushed . | . . . . . Highest Temperature 310 | . 141 . . 310 Average Temperature 110 | . 78 . . 130 Received Heat Transfer 441 | . . . . 441 Siege Activations . | . . . . . Robots Corrupted . | . . . . . Combat Hostiles . | . . . . . Parts Fried . | . . . . . Impact Corruptions . | . . . . . Robots Melted 1 | . . . . 1 Combat Hostiles 1 | . . . . 1 Parts Melted 1 | . . . . 1 Heat Transferred 555 | . 74 . . 481 Parts Sabotaged . | . . . . . Parts Stolen . | . . . . . Parts Stripped . | . . . . . Power Chain Reactions . | . . . . . Alert | -11 -10 -10 -9 -9 ------- Run | Yrd Mat Min Mat Sto Peak Influence 102 | . 68 26 9 102 Initial 26 | . . 26 9 3 Average 18 | . 10 26 9 28 Maximum Alert Level . | . . . . . Low Security (%) 100 | 100 100 100 100 100 Level 1 . | . . . . . Level 2 . | . . . . . Level 3 . | . . . . . Level 4 . | . . . . . Level 5 . | . . . . . High Security . | . . . . . Max Security . | . . . . . Squads Dispatched . | . . . . . Investigation . | . . . . . Extermination . | . . . . . Reinforcement . | . . . . . Assault . | . . . . . Garrison . | . . . . . Intercept . | . . . . . Searches Triggered . | . . . . . Construction Impeded . | . . . . . Haulers Reinforced . | . . . . . Active Scanning Responses . | . . . . . Cargo Convoy Interrupts . | . . . . . Stealth | -11 -10 -10 -9 -9 --------- Run | Yrd Mat Min Mat Sto Distress Signals . | . . . . . Communications Jammed . | . . . . . Distress Signals . | . . . . . Times Spotted 20 | . 7 3 . 10 Peak Tracking Total 5 | . 4 3 . 5 Tactical Retreats 2 | . 1 . . 1 Traps | -11 -10 -10 -9 -9 ------- Run | Yrd Mat Min Mat Sto Traps Triggered . | . . . . . Indirectly . | . . . . . Trap Hack Attempts . | . . . . . Triggered . | . . . . . Disarmed . | . . . . . Reprogrammed . | . . . . . Reused . | . . . . . Traps Extracted . | . . . . . Installed . | . . . . . Triggered . | . . . . . Machines | -11 -10 -10 -9 -9 ---------- Run | Yrd Mat Min Mat Sto Machines Disabled 2 | . . . . 2 Max in Single Turn 2 | . . . . 2 Machines Repaired . | . . . . . Machines Dismantled . | . . . . . Machines Sabotaged . | . . . . . Overloaded Fab Kills . | . . . . . Hacking | -11 -10 -10 -9 -9 --------- Run | Yrd Mat Min Mat Sto Machines Accessed 1 | . 1 . . . Terminals 1 | . 1 . . . Fabricators . | . . . . . Repair Stations . | . . . . . Recycling Units . | . . . . . Scanalyzers . | . . . . . Garrison Access . | . . . . . Total Hacks 2 | . 2 . . . Successful 1 | . 1 . . . Failed 1 | . 1 . . . Catastrophic 1 | . 1 . . . Database Lockouts . | . . . . . Manual 2 | . 2 . . . Terminals 2 | . 2 . . . Fabricators . | . . . . . Repair Stations . | . . . . . Recycling Units . | . . . . . Scanalyzers . | . . . . . Garrison Access . | . . . . . Terminal Hacks 1 | . 1 . . . Branch Access Points 1 | . 1 . . . Fabricator Hacks . | . . . . . Repair Station Hacks . | . . . . . Recycling Unit Hacks . | . . . . . Scanalyzer . | . . . . . Garrison Access Hacks . | . . . . . Unauthorized Hacks . | . . . . . Terminals . | . . . . . Fabricators . | . . . . . Repair Stations . | . . . . . Recycling Units . | . . . . . Scanalyzers . | . . . . . Garrison Access . | . . . . . Data Cores Recovered . | . . . . . Used . | . . . . . Hacking Detections 1 | . 1 . . . Full Trace Events . | . . . . . Feedback Events . | . . . . . Feedback Blocked . | . . . . . Robot Schematics Acquired . | . . . . . Robots Built . | . . . . . Authchips . | . . . . . Time . | . . . . . Total Robot Build Rating . | . . . . . Part Schematics Acquired . | . . . . . Parts Built . | . . . . . Authchips . | . . . . . Time . | . . . . . Total Part Build Rating . | . . . . . Parts Repaired . | . . . . . Time . | . . . . . Parts Recycled . | . . . . . Recycled Matter . | . . . . . Retrieved Matter . | . . . . . Retrieved Components . | . . . . . Parts Scanalyzed . | . . . . . Part Schematics Acquired . | . . . . . Parts Damaged . | . . . . . Bothacking | -11 -10 -10 -9 -9 ------------ Run | Yrd Mat Min Mat Sto Used RIF Installer . | . . . . . Robots Hacked . | . . . . . Non-combat . | . . . . . Combat . | . . . . . Robot Hacks Applied . | . . . . . Relay Couplers Released . | . . . . . Fabnet Peak Effective % . | . . . . . Robots Rewired . | . . . . . Allies Hacked . | . . . . . Hacks Repelled . | . . . . . Allies | -11 -10 -10 -9 -9 -------- Run | Yrd Mat Min Mat Sto Total Allies . | . . . . . Largest Group . | . . . . . Highest-Rated Group . | . . . . . Highest-Rated Ally . | . . . . . Total Orders . | . . . . . Ally Attacks . | . . . . . Total Damage . | . . . . . Kills . | . . . . . Allies Corrupted . | . . . . . Allies Melted . | . . . . . Intel | -11 -10 -10 -9 -9 ------- Run | Yrd Mat Min Mat Sto Robot Analysis Total . | . . . . . Derelict Logs Recovered . | . . . . . Drone Launches . | . . . . . Drone Recoveries . | . . . . . Exploration | -11 -10 -10 -9 -9 ------------- Run | Yrd Mat Min Mat Sto Turns Passed 563 | 57 191 21 30 264 Spaces Moved 353 | 42 125 18 26 142 Core 41 | 7 . . . 34 Treads . | . . . . . Legs 266 | 35 125 18 26 62 Wheels 46 | . . . . 46 Hover . | . . . . . Flight . | . . . . . Fastest Speed 50 | 50 120 120 120 100 Average Speed 122 | 111 120 120 120 128 Slowest Speed 300 | 120 120 120 120 300 Overloaded Moves . | . . . . . Propulsion Burnouts . | . . . . . Robots Hopped . | . . . . . Cave-ins Triggered . | . . . . . Exploration Rate (%) 12 | 4 22 13 4 21 Regions Visited 4 Branch Regions 2 Pre-discovered Areas . | . . . . . Known Exits Taken 1 | . 1 . . . Unknown Exits Taken 3 | 1 . 1 1 . Scrap Searched . | . . . . . Spaces Dug . | . . . . . Terrain Destroyed 9 | . . . . 9 Melee . | . . . . . Projectile . | . . . . . AOE 9 | . . . . 9 Terrain Rammed . | . . . . . Walls Destroyed . | . . . . . Machines Disabled . | . . . . . Actions | -11 -10 -10 -9 -9 --------- Run | Yrd Mat Min Mat Sto Total 450 | 52 156 17 25 200 Wait 52 | . 20 . . 32 Move 349 | 41 124 17 25 142 Hop . | . . . . . Pick Up 15 | 7 4 . . 4 Fast Attach . | . . . . . Attach 13 | 4 3 . . 6 Detach . | . . . . . Swap . | . . . . . Drop . | . . . . . Fire 21 | . 5 . . 16 Melee . | . . . . . Ram . | . . . . . Kick . | . . . . . Crush . | . . . . . Escape Stasis . | . . . . . Rewire . | . . . . . Trap . | . . . . . Miscellaneous . | . . . . . Route ------- -11/Scrapyard -10/Materials (discovered 2 exits: *Min x2) -10/Mines -9/Materials -9/Storage History --------- Turn | Location | Event 7 | -11/Scrapyard | Discovered new exit (range 14) 58 | -11/Scrapyard | Entered Materials 163 | -10/Materials | Identified exit to Mines 249 | -10/Materials | Entered Mines 253 | -10/Mines | Discovered new exit (range 15) 270 | -10/Mines | Entered Materials 270 | -9/Materials | Evolved 2 slots: Propulsion x2 278 | -9/Materials | Discovered new exit (range 16) 300 | -9/Materials | Entered Storage 310 | -9/Storage | Build established: Mutant 442 | -9/Storage | Lost 4 parts (2n2w) 454 | -9/Storage | Core integrity fell below 50% 483 | -9/Storage | Lost 4 parts (1p1u2w) 555 | -9/Storage | Core integrity fell below 20% 564 | -9/Storage | Destroyed by Y-45 Defender with Heavy Assault Rifle Last Messages --------------- U-05 Engineer builds a Wall. K-01 Serf collects debris. R-06 Scavenger destroyed. K-01 Serf collects debris. U-05 Engineer lays Concrete. U-05 Engineer builds a Wall. Acquired Beam Rifle. K-01 Serf collects debris. Acquired Com. Wheel. K-01 Serf collects debris. Acquired 1 matter. U-05 Engineer lays Concrete. U-05 Engineer builds a Wall. Imp. Light Cannon destroyed. Beam Rifle destroyed. Critical hit (Burn: +37). The unstable cave ceiling collapses. U-05 Engineer lays Concrete. Com. Wheel destroyed. U-05 Engineer lays Concrete. Map ----- +----------------------------------------------------+ | ??????????????????????????????????? | | ??????????????????????????????????? | | ??????????????????????????????????? | | ??????????????????????????????????? | | ??????????????????????????????????? | | ??????????????????????????????????? | | ??????????????????????????????????? | | ??????????????????????????????????? | | ??????????????????? ????????????? | | ??????????????????? ???????????? | | ??????????????????? ???????????? | | ??????????????????? #???????????? | | ??????????????????? #???????????? | | ??????????????????? #???????????? | | ??????????????????? #???????????? | | ??????????????????# #???????????? | | ??????????????????# #???????????? | | ???????????????#?## ##??????????? | | ????????????????## #??????????? | | ?#???????????????# #??????????? | | ?????????????????# #??????????? | | #??????#???#?????# #??????????? | | ??????????#####??# #??????????? | | ??????????#"""#???# #???????????? | | ????#######"Y"##### #???????????? | | ???## @ u # #???????????? | | ???# " "g " " # #??#????????? | | ???## "" " + #???????????? | | ????# ""gYg "" # #???????????? | | ????# " "" # #???????????? | | ????# Y # #???????????? | | ################### #???????????? | | # #### ###### #???#??#????? | | # # #???????????? | | # """ # #???????????? | | # """ # #??##???????? | | # """ # #####+#########???????? | | # %+%% # """ """ #????????? | | # """ %# % # """ """ #????????? | | # """ # # """ """ #????????? | | # """ # # ????????? | | # # # ?????????? | | # # ############??????????? | | ######### ##?#??????????????????? | | # # #????#?#??????????????? | | # # ####?#?????#??#???????? | | # # #T####????????????????? | | # """ + + "!!#????????????????? | | # """ # # !#????????????????? | | # """ # # "!!#????????????????? | +----------------------------------------------------+ Best States ------------- Heat Dissipation 28 Energy Generation 10 Energy Capacity 250 Matter Stores 278 Matter Capacity 300 Sight Range 16 Terrain Scan Range 14 Terrain Scan Density 10 Evasion (%) 55 Targeting Accuracy 5 Item Schematics ----------------- None Robot Schematics ------------------ None Fabricated ------------ Nothing Alien Tech Used ----------------- None Achievements -------------- None Challenges ------------ None Game ------ Seed RecyclingZioniteBarrier Manual? 0 Play Time 00:07:40 Cumulative 13.7 hours Start 2025.03.05 @ 15:54:51 End 2025.03.05 @ 16:00:05 Sessions 1 Manual Loads 0 Difficulty Rogue Special Mode None Game No. 37 Rogue 34 Adventurer 1 Explorer 2 Win Type - Total 0 Types 0/0/0/0/0/0/0/0/0 Lore% 13 Gallery% 20 Achievement% 19 Wizard Run 0 Options --------- Layout 1 ASCII 0 Keyboard 0 Movement Numpad Keybinds 0 Fullscreen 1 Font 48/Smallcaps Map View 50x35 Zoom Use 0% Tactical HUD 0 Map Filters NONE Filters NONE Steam 1 RUN: bbc10d4d-279e-4523-aea7-1ed1dff298fe